[Event "Titled Tuesday Blitz August 3 2021"]
[White "Alavi, Sayed Javad"]
[Black "Pires, Marcos Vinicius Torsani"]
[WhiteFideId "12500607"]
[BlackFideId "2118939"]
[WhiteElo "2495"]
[BlackElo "2273"]
[Result "1-0"]
[Round "01"]
[TimeControl "180+1"]
[Date "2021.08.03"]
[WhiteClock "0:02:01"]
[BlackClock "0:01:35"]

1. e4 {[%clk 0:03:00]}  c6 {[%clk 0:03:00]} 2. d4 {[%clk 0:02:59]}  d5 {[%clk 0:03:00]} 3. Nd2 {[%clk 0:02:59]}  dxe4 {[%clk 0:03:00]} 4. Nxe4 {[%clk 0:03:00]}  Bf5 {[%clk 0:03:00]} 5. Ng3 {[%clk 0:03:01]}  Bg6 {[%clk 0:03:00]} 6. h4 {[%clk 0:03:01]}  h6 {[%clk 0:03:01]} 7. Nf3 {[%clk 0:03:01]}  Nd7 {[%clk 0:03:00]} 8. h5 {[%clk 0:03:01]}  Bh7 {[%clk 0:03:00]} 9. Bd3 {[%clk 0:03:02]}  Bxd3 {[%clk 0:03:01]} 10. Qxd3 {[%clk 0:03:03]}  e6 {[%clk 0:03:02]} 11. Bd2 {[%clk 0:02:58]}  Ngf6 {[%clk 0:03:01]} 12. O-O-O {[%clk 0:02:58]}  Be7 {[%clk 0:03:02]} 13. Kb1 {[%clk 0:02:53]}  Qb6 {[%clk 0:03:02]} 14. Rde1 {[%clk 0:02:33]}  O-O {[%clk 0:02:52]} 15. Nf5 {[%clk 0:02:30]}  exf5 {[%clk 0:02:52]} 16. Rxe7 {[%clk 0:02:31]}  Rfe8 {[%clk 0:02:25]} 17. Rxe8+ {[%clk 0:02:24]}  Rxe8 {[%clk 0:02:26]} 18. Qxf5 {[%clk 0:02:24]}  Re2 {[%clk 0:02:13]} 19. Be3 {[%clk 0:02:19]}  Nd5 {[%clk 0:01:49]} 20. Qxd7 {[%clk 0:02:03]}  Nc3+ {[%clk 0:01:47]} 21. Ka1 {[%clk 0:02:01]}  Rxc2 {[%clk 0:01:42]} 22. Qc8+ {[%clk 0:02:00]}  Kh7 {[%clk 0:01:35]} 23. Qf5+ {[%clk 0:02:01]} 1-0


[Site "https://www.chess.com"]

[Event "Titled Tuesday Blitz August 3 2021"]
[White "Altman, Joshua"]
[Black "Perez Ponsa, Federico"]
[WhiteFideId "426210"]
[BlackFideId "117927"]
[WhiteElo "1945"]
[BlackElo "2672"]
[Result "1-0"]
[Round "01"]
[TimeControl "180+1"]
[Date "2021.08.03"]
[WhiteClock "0:00:20"]
[BlackClock "0:00:05"]

1. d4 {[%clk 0:03:00]}  d5 {[%clk 0:02:56]} 2. c4 {[%clk 0:03:01]}  e6 {[%clk 0:02:54]} 3. Nc3 {[%clk 0:03:01]}  Nf6 {[%clk 0:02:49]} 4. cxd5 {[%clk 0:03:01]}  Nxd5 {[%clk 0:02:50]} 5. e4 {[%clk 0:03:01]}  Nxc3 {[%clk 0:02:50]} 6. bxc3 {[%clk 0:03:02]}  c5 {[%clk 0:02:51]} 7. Nf3 {[%clk 0:03:02]}  cxd4 {[%clk 0:02:51]} 8. cxd4 {[%clk 0:03:02]}  Bb4+ {[%clk 0:02:52]} 9. Bd2 {[%clk 0:03:03]}  Bxd2+ {[%clk 0:02:52]} 10. Qxd2 {[%clk 0:03:04]}  O-O {[%clk 0:02:53]} 11. Bc4 {[%clk 0:03:04]}  Nd7 {[%clk 0:02:53]} 12. O-O {[%clk 0:03:04]}  b6 {[%clk 0:02:54]} 13. Rfd1 {[%clk 0:03:02]}  Bb7 {[%clk 0:02:54]} 14. Bd3 {[%clk 0:03:02]}  Rc8 {[%clk 0:02:51]} 15. Rac1 {[%clk 0:03:02]}  Qe7 {[%clk 0:02:47]} 16. h3 {[%clk 0:03:00]}  h6 {[%clk 0:02:46]} 17. a4 {[%clk 0:02:58]}  a5 {[%clk 0:02:45]} 18. Rxc8 {[%clk 0:02:44]}  Rxc8 {[%clk 0:02:45]} 19. Rc1 {[%clk 0:02:45]}  Rxc1+ {[%clk 0:02:31]} 20. Qxc1 {[%clk 0:02:46]}  Nf6 {[%clk 0:02:32]} 21. Qc2 {[%clk 0:02:35]}  Qd7 {[%clk 0:02:25]} 22. Ne5 {[%clk 0:02:29]}  Qd8 {[%clk 0:02:10]} 23. Nf3 {[%clk 0:02:16]}  Qe8 {[%clk 0:02:03]} 24. Qc7 {[%clk 0:02:12]}  Bxe4 {[%clk 0:01:58]} 25. Bxe4 {[%clk 0:02:06]}  Nxe4 {[%clk 0:01:58]} 26. Qxb6 {[%clk 0:02:07]}  Qxa4 {[%clk 0:01:58]} 27. Qd8+ {[%clk 0:01:38]}  Kh7 {[%clk 0:01:57]} 28. Ne5 {[%clk 0:01:38]}  Qa1+ {[%clk 0:01:32]} 29. Kh2 {[%clk 0:01:37]}  f6 {[%clk 0:01:21]} 30. Nd7 {[%clk 0:01:27]}  Kg6 {[%clk 0:01:13]} 31. Qe8+ {[%clk 0:01:22]}  Kg5 {[%clk 0:01:08]} 32. Qxe6 {[%clk 0:01:17]}  f5 {[%clk 0:00:56]} 33. g3 {[%clk 0:00:33]}  Qf1 {[%clk 0:00:18]} 34. h4+ {[%clk 0:00:30]}  Kh5 {[%clk 0:00:04]} 35. Qxf5+ {[%clk 0:00:27]}  g5 {[%clk 0:00:05]} 36. Qf7+ {[%clk 0:00:20]}  Kg4 {[%clk 0:00:05]} 37. Ne5# {[%clk 0:00:20]} 1-0


[Site "https://www.chess.com"]

[Event "Titled Tuesday Blitz August 3 2021"]
[White "Araujo Sanchez, Josue"]
[Black "Silva Lucena, Cristian"]
[WhiteFideId "6416896"]
[BlackFideId "2232588"]
[WhiteElo "2181"]
[BlackElo "2217"]
[Result "1-0"]
[Round "01"]
[TimeControl "180+1"]
[Date "2021.08.03"]
[WhiteClock "0:02:11"]
[BlackClock "0:00:29"]

1. e4 {[%clk 0:02:48]}  c5 {[%clk 0:02:59]} 2. Nf3 {[%clk 0:02:42]}  e6 {[%clk 0:02:59]} 3. c3 {[%clk 0:02:41]}  Nf6 {[%clk 0:02:58]} 4. e5 {[%clk 0:02:38]}  Nd5 {[%clk 0:02:58]} 5. d4 {[%clk 0:02:39]}  cxd4 {[%clk 0:02:58]} 6. cxd4 {[%clk 0:02:40]}  b6 {[%clk 0:02:58]} 7. Nc3 {[%clk 0:02:38]}  Bb7 {[%clk 0:02:58]} 8. Bd3 {[%clk 0:02:38]}  Na6 {[%clk 0:02:58]} 9. O-O {[%clk 0:02:38]}  Nab4 {[%clk 0:02:56]} 10. Bb1 {[%clk 0:02:37]}  Nxc3 {[%clk 0:02:56]} 11. bxc3 {[%clk 0:02:37]}  Nd5 {[%clk 0:02:57]} 12. c4 {[%clk 0:02:37]}  Nc3 {[%clk 0:02:56]} 13. Qb3 {[%clk 0:02:33]}  Nxb1 {[%clk 0:02:56]} 14. Rxb1 {[%clk 0:02:34]}  Be7 {[%clk 0:02:53]} 15. d5 {[%clk 0:02:34]}  Bc5 {[%clk 0:02:41]} 16. Bg5 {[%clk 0:02:32]}  Be7 {[%clk 0:02:39]} 17. Be3 {[%clk 0:02:31]}  Bf8 {[%clk 0:01:52]} 18. Rfd1 {[%clk 0:02:28]}  Rc8 {[%clk 0:01:44]} 19. a4 {[%clk 0:02:21]}  Bc5 {[%clk 0:01:42]} 20. Bg5 {[%clk 0:02:21]}  Be7 {[%clk 0:01:29]} 21. h4 {[%clk 0:02:17]}  h6 {[%clk 0:01:24]} 22. Bxe7 {[%clk 0:02:16]}  Qxe7 {[%clk 0:01:23]} 23. a5 {[%clk 0:02:17]}  O-O {[%clk 0:01:05]} 24. axb6 {[%clk 0:02:16]}  axb6 {[%clk 0:01:03]} 25. Qxb6 {[%clk 0:02:16]}  Rb8 {[%clk 0:00:44]} 26. Qd4 {[%clk 0:02:12]}  Rfc8 {[%clk 0:00:37]} 27. Nd2 {[%clk 0:02:12]}  Ba6 {[%clk 0:00:30]} 28. Rxb8 {[%clk 0:02:10]}  Rxb8 {[%clk 0:00:29]} 29. Qa7 {[%clk 0:02:11]} 1-0


[Site "https://www.chess.com"]

[Event "Titled Tuesday Blitz August 3 2021"]
[White "Bazarov, Konstantin"]
[Black "Korchmar, Vasiliy"]
[WhiteFideId "4137000"]
[BlackFideId "24131750"]
[WhiteElo "2190"]
[BlackElo "2370"]
[Result "0-1"]
[Round "01"]
[TimeControl "180+1"]
[Date "2021.08.03"]
[WhiteClock "0:00:57"]
[BlackClock "0:00:57"]

1. d4 {[%clk 0:02:56]}  d5 {[%clk 0:02:58]} 2. c4 {[%clk 0:02:57]}  c6 {[%clk 0:02:57]} 3. Nc3 {[%clk 0:02:57]}  Nf6 {[%clk 0:02:56]} 4. e3 {[%clk 0:02:58]}  e6 {[%clk 0:02:56]} 5. Nf3 {[%clk 0:02:58]}  a6 {[%clk 0:02:57]} 6. Qc2 {[%clk 0:02:57]}  c5 {[%clk 0:02:56]} 7. cxd5 {[%clk 0:02:56]}  exd5 {[%clk 0:02:57]} 8. dxc5 {[%clk 0:02:55]}  Bxc5 {[%clk 0:02:57]} 9. Be2 {[%clk 0:02:55]}  O-O {[%clk 0:02:57]} 10. O-O {[%clk 0:02:55]}  Nc6 {[%clk 0:02:58]} 11. a3 {[%clk 0:02:53]}  Qe7 {[%clk 0:02:54]} 12. b4 {[%clk 0:02:49]}  Ba7 {[%clk 0:02:52]} 13. Rd1 {[%clk 0:02:49]}  Rd8 {[%clk 0:02:50]} 14. Nd4 {[%clk 0:02:44]}  Bd7 {[%clk 0:02:32]} 15. Bb2 {[%clk 0:02:37]}  Rac8 {[%clk 0:02:30]} 16. Nb3 {[%clk 0:02:34]}  Ne5 {[%clk 0:02:28]} 17. Qb1 {[%clk 0:02:26]}  Neg4 {[%clk 0:02:19]} 18. Bxg4 {[%clk 0:02:00]}  Nxg4 {[%clk 0:02:20]} 19. Rf1 {[%clk 0:01:26]}  Qe5 {[%clk 0:02:00]} 20. g3 {[%clk 0:01:22]}  Rxc3 {[%clk 0:01:35]} 21. Bxc3 {[%clk 0:01:18]}  Qxc3 {[%clk 0:01:36]} 22. Nd4 {[%clk 0:01:14]}  Nxe3 {[%clk 0:01:28]} 23. Ne2 {[%clk 0:01:08]}  Qe5 {[%clk 0:01:05]} 24. Re1 {[%clk 0:01:01]}  Ng4 {[%clk 0:01:03]} 25. Kg2 {[%clk 0:00:57]}  Bxf2 {[%clk 0:00:57]} 0-1


[Site "https://www.chess.com"]

[Event "Titled Tuesday Blitz August 3 2021"]
[White "Brunner, Nicolas"]
[Black "Urazayev, Arystanbek"]
[WhiteFideId "620246"]
[BlackFideId "13709810"]
[WhiteElo "2372"]
[BlackElo "2321"]
[Result "0-1"]
[Round "01"]
[TimeControl "180+1"]
[Date "2021.08.03"]
[WhiteClock "0:00:14"]
[BlackClock "0:00:04"]

1. d4 {[%clk 0:02:58]}  d5 {[%clk 0:03:00]} 2. c4 {[%clk 0:02:57]}  e6 {[%clk 0:03:00]} 3. Nf3 {[%clk 0:02:58]}  a6 {[%clk 0:03:00]} 4. cxd5 {[%clk 0:02:57]}  exd5 {[%clk 0:03:01]} 5. Nc3 {[%clk 0:02:58]}  h6 {[%clk 0:03:01]} 6. Bf4 {[%clk 0:02:57]}  Nf6 {[%clk 0:03:01]} 7. e3 {[%clk 0:02:57]}  Bd6 {[%clk 0:03:02]} 8. Bxd6 {[%clk 0:02:56]}  Qxd6 {[%clk 0:03:03]} 9. Bd3 {[%clk 0:02:57]}  O-O {[%clk 0:03:02]} 10. O-O {[%clk 0:02:57]}  Bg4 {[%clk 0:03:02]} 11. h3 {[%clk 0:02:57]}  Bxf3 {[%clk 0:02:59]} 12. Qxf3 {[%clk 0:02:55]}  Nbd7 {[%clk 0:02:59]} 13. Rac1 {[%clk 0:02:55]}  c6 {[%clk 0:02:59]} 14. Na4 {[%clk 0:02:50]}  Rfe8 {[%clk 0:02:58]} 15. Nc5 {[%clk 0:02:44]}  Nxc5 {[%clk 0:02:58]} 16. Rxc5 {[%clk 0:02:44]}  Ne4 {[%clk 0:02:59]} 17. Bxe4 {[%clk 0:02:44]}  Rxe4 {[%clk 0:02:59]} 18. Rfc1 {[%clk 0:02:43]}  Rae8 {[%clk 0:02:59]} 19. b4 {[%clk 0:02:42]}  g6 {[%clk 0:02:37]} 20. a4 {[%clk 0:02:40]}  h5 {[%clk 0:02:32]} 21. b5 {[%clk 0:02:40]}  cxb5 {[%clk 0:02:33]} 22. axb5 {[%clk 0:02:40]}  a5 {[%clk 0:02:33]} 23. Rc7 {[%clk 0:02:36]}  R4e7 {[%clk 0:02:26]} 24. Rxe7 {[%clk 0:02:18]}  Rxe7 {[%clk 0:02:27]} 25. Qd1 {[%clk 0:02:15]}  Rc7 {[%clk 0:01:26]} 26. Ra1 {[%clk 0:02:13]}  b6 {[%clk 0:01:26]} 27. Qb3 {[%clk 0:02:12]}  Kg7 {[%clk 0:01:25]} 28. g3 {[%clk 0:02:12]}  h4 {[%clk 0:01:25]} 29. g4 {[%clk 0:02:11]}  Kf6 {[%clk 0:01:21]} 30. Kg2 {[%clk 0:02:11]}  Qe6 {[%clk 0:01:19]} 31. Ra2 {[%clk 0:01:52]}  Qe4+ {[%clk 0:01:18]} 32. f3 {[%clk 0:01:47]}  Qe6 {[%clk 0:01:15]} 33. Qd3 {[%clk 0:01:47]}  Qd6 {[%clk 0:01:12]} 34. f4 {[%clk 0:01:40]}  Rc4 {[%clk 0:01:08]} 35. Kf3 {[%clk 0:01:38]}  Qc7 {[%clk 0:01:05]} 36. g5+ {[%clk 0:01:20]}  Kg7 {[%clk 0:01:05]} 37. Kg4 {[%clk 0:01:20]}  Rc3 {[%clk 0:01:04]} 38. Qd2 {[%clk 0:01:14]}  Qc4 {[%clk 0:00:57]} 39. Kxh4 {[%clk 0:01:11]}  Rd3 {[%clk 0:00:56]} 40. Qf2 {[%clk 0:01:06]}  Qb3 {[%clk 0:00:49]} 41. Rb2 {[%clk 0:01:03]}  Qa3 {[%clk 0:00:49]} 42. Re2 {[%clk 0:00:58]}  a4 {[%clk 0:00:45]} 43. f5 {[%clk 0:00:58]}  Qd6 {[%clk 0:00:31]} 44. fxg6 {[%clk 0:00:27]}  Qxg6 {[%clk 0:00:30]} 45. Rb2 {[%clk 0:00:26]}  a3 {[%clk 0:00:27]} 46. Rc2 {[%clk 0:00:27]}  Qe4+ {[%clk 0:00:23]} 47. Kh5 {[%clk 0:00:24]}  Qg6+ {[%clk 0:00:20]} 48. Kg4 {[%clk 0:00:24]}  Rxe3 {[%clk 0:00:08]} 49. Qxe3 {[%clk 0:00:22]}  Qxc2 {[%clk 0:00:06]} 50. Qe5+ {[%clk 0:00:22]}  Kh7 {[%clk 0:00:05]} 51. Qxd5 {[%clk 0:00:19]}  Qg6 {[%clk 0:00:03]} 52. h4 {[%clk 0:00:16]}  Qe6+ {[%clk 0:00:03]} 53. Qxe6 {[%clk 0:00:14]}  fxe6 {[%clk 0:00:04]} 0-1


[Site "https://www.chess.com"]

[Event "Titled Tuesday Blitz August 3 2021"]
[White "Chernikov, Vladimir"]
[Black "MikeKorovin"]
[WhiteFideId "14112914"]
[WhiteElo "2067"]
[BlackElo "2714"]
[Result "0-1"]
[Round "01"]
[TimeControl "180+1"]
[Date "2021.08.03"]
[WhiteClock "0:00:03"]
[BlackClock "0:00:19"]

1. c4 {[%clk 0:03:00]}  Nf6 {[%clk 0:02:59]} 2. Nc3 {[%clk 0:03:00]}  e6 {[%clk 0:02:48]} 3. e4 {[%clk 0:02:59]}  d5 {[%clk 0:02:46]} 4. e5 {[%clk 0:02:59]}  Nfd7 {[%clk 0:02:46]} 5. d4 {[%clk 0:02:55]}  c5 {[%clk 0:02:45]} 6. cxd5 {[%clk 0:02:54]}  exd5 {[%clk 0:02:45]} 7. Nxd5 {[%clk 0:02:53]}  cxd4 {[%clk 0:02:45]} 8. Qxd4 {[%clk 0:02:43]}  Nb6 {[%clk 0:02:41]} 9. Bc4 {[%clk 0:01:57]}  Be6 {[%clk 0:02:38]} 10. Bg5 {[%clk 0:01:57]}  Bb4+ {[%clk 0:02:19]} 11. Kf1 {[%clk 0:01:36]}  Bxd5 {[%clk 0:01:56]} 12. Bb5+ {[%clk 0:01:26]}  Nc6 {[%clk 0:01:20]} 13. Bxd8 {[%clk 0:01:25]}  Bc4+ {[%clk 0:01:05]} 14. Qxc4 {[%clk 0:00:59]}  Nxc4 {[%clk 0:01:03]} 15. Bxc4 {[%clk 0:01:00]}  Rxd8 {[%clk 0:01:00]} 16. a3 {[%clk 0:00:55]}  Bc5 {[%clk 0:00:52]} 17. Nf3 {[%clk 0:00:46]}  O-O {[%clk 0:00:52]} 18. b4 {[%clk 0:00:43]}  Bd4 {[%clk 0:00:50]} 19. Nxd4 {[%clk 0:00:42]}  Rxd4 {[%clk 0:00:51]} 20. Rc1 {[%clk 0:00:34]}  Nxe5 {[%clk 0:00:51]} 21. Be2 {[%clk 0:00:33]}  Rfd8 {[%clk 0:00:49]} 22. f3 {[%clk 0:00:29]}  Rd2 {[%clk 0:00:47]} 23. Rc7 {[%clk 0:00:21]}  g6 {[%clk 0:00:44]} 24. Kf2 {[%clk 0:00:21]}  Re8 {[%clk 0:00:33]} 25. Rc3 {[%clk 0:00:17]}  Nd3+ {[%clk 0:00:30]} 26. Rxd3 {[%clk 0:00:14]}  Rexe2+ {[%clk 0:00:30]} 27. Kf1 {[%clk 0:00:15]}  Rf2+ {[%clk 0:00:26]} 28. Ke1 {[%clk 0:00:14]}  Rfe2+ {[%clk 0:00:22]} 29. Kf1 {[%clk 0:00:14]}  Rxd3 {[%clk 0:00:21]} 30. Kxe2 {[%clk 0:00:14]}  Rxa3 {[%clk 0:00:22]} 31. Rb1 {[%clk 0:00:11]}  Ra2+ {[%clk 0:00:22]} 32. Ke3 {[%clk 0:00:11]}  Rxg2 {[%clk 0:00:21]} 33. b5 {[%clk 0:00:11]}  Rxh2 {[%clk 0:00:21]} 34. Ra1 {[%clk 0:00:10]}  a6 {[%clk 0:00:22]} 35. bxa6 {[%clk 0:00:10]}  bxa6 {[%clk 0:00:22]} 36. Rxa6 {[%clk 0:00:11]}  Kg7 {[%clk 0:00:22]} 37. Kf4 {[%clk 0:00:11]}  Rh5 {[%clk 0:00:23]} 38. Ra7 {[%clk 0:00:12]}  Rf5+ {[%clk 0:00:22]} 39. Kg4 {[%clk 0:00:12]}  h5+ {[%clk 0:00:23]} 40. Kg3 {[%clk 0:00:13]}  Kh6 {[%clk 0:00:22]} 41. Rb7 {[%clk 0:00:12]}  Kg5 {[%clk 0:00:22]} 42. Ra7 {[%clk 0:00:11]}  h4+ {[%clk 0:00:23]} 43. Kg2 {[%clk 0:00:10]}  Kh5 {[%clk 0:00:22]} 44. Ra8 {[%clk 0:00:10]}  Kg5 {[%clk 0:00:22]} 45. Rh8 {[%clk 0:00:10]}  f6 {[%clk 0:00:21]} 46. Rg8 {[%clk 0:00:09]}  Ra5 {[%clk 0:00:20]} 47. Kh3 {[%clk 0:00:09]}  Ra3 {[%clk 0:00:20]} 48. Kg2 {[%clk 0:00:08]}  h3+ {[%clk 0:00:21]} 49. Kg3 {[%clk 0:00:06]}  h2 {[%clk 0:00:20]} 50. Rh8 {[%clk 0:00:07]}  Ra2 {[%clk 0:00:21]} 51. f4+ {[%clk 0:00:06]}  Kf5 {[%clk 0:00:21]} 52. Kf3 {[%clk 0:00:04]}  Ra3+ {[%clk 0:00:21]} 53. Kg2 {[%clk 0:00:04]}  Ra2+ {[%clk 0:00:19]} 54. Kf3 {[%clk 0:00:04]}  Rb2 {[%clk 0:00:19]} 55. Rh4 {[%clk 0:00:03]}  Rb4 {[%clk 0:00:17]} 56. Rxh2 {[%clk 0:00:02]}  Rb3+ {[%clk 0:00:17]} 57. Kf2 {[%clk 0:00:02]}  Rb2+ {[%clk 0:00:18]} 58. Kg3 {[%clk 0:00:03]}  Rxh2 {[%clk 0:00:19]} 0-1


[Site "https://www.chess.com"]

[Event "Titled Tuesday Blitz August 3 2021"]
[White "Dang, Hoang Son"]
[Black "Pandey Srishti"]
[WhiteFideId "12402435"]
[BlackFideId "35093290"]
[WhiteElo "2248"]
[BlackElo "1816"]
[Result "0-1"]
[Round "01"]
[TimeControl "180+1"]
[Date "2021.08.03"]
[WhiteClock "0:00:15"]
[BlackClock "0:00:20"]

1. d4 {[%clk 0:02:58]}  d5 {[%clk 0:02:56]} 2. c4 {[%clk 0:02:59]}  c6 {[%clk 0:02:56]} 3. Nf3 {[%clk 0:03:00]}  Nf6 {[%clk 0:02:55]} 4. cxd5 {[%clk 0:03:00]}  cxd5 {[%clk 0:02:55]} 5. Nc3 {[%clk 0:03:01]}  Nc6 {[%clk 0:02:53]} 6. Bf4 {[%clk 0:03:01]}  a6 {[%clk 0:02:52]} 7. e3 {[%clk 0:03:02]}  e6 {[%clk 0:02:49]} 8. Rc1 {[%clk 0:03:02]}  Bd6 {[%clk 0:02:49]} 9. Bg3 {[%clk 0:03:03]}  O-O {[%clk 0:02:49]} 10. Bd3 {[%clk 0:03:03]}  Re8 {[%clk 0:02:41]} 11. a3 {[%clk 0:02:56]}  e5 {[%clk 0:02:25]} 12. dxe5 {[%clk 0:02:54]}  Nxe5 {[%clk 0:02:25]} 13. Nxe5 {[%clk 0:02:54]}  Bxe5 {[%clk 0:02:26]} 14. O-O {[%clk 0:02:50]}  Bg4 {[%clk 0:02:21]} 15. Be2 {[%clk 0:02:42]}  Bxe2 {[%clk 0:02:18]} 16. Qxe2 {[%clk 0:02:39]}  d4 {[%clk 0:02:16]} 17. Rfd1 {[%clk 0:02:30]}  Bxg3 {[%clk 0:01:38]} 18. hxg3 {[%clk 0:02:29]}  Qb6 {[%clk 0:01:29]} 19. Rxd4 {[%clk 0:02:25]}  Rac8 {[%clk 0:01:27]} 20. Rcd1 {[%clk 0:02:22]}  h6 {[%clk 0:01:25]} 21. Rb4 {[%clk 0:02:10]}  Qc7 {[%clk 0:01:23]} 22. Qf3 {[%clk 0:02:10]}  b5 {[%clk 0:01:21]} 23. Rf4 {[%clk 0:02:10]}  Rcd8 {[%clk 0:01:11]} 24. Rxd8 {[%clk 0:02:02]}  Rxd8 {[%clk 0:01:12]} 25. g4 {[%clk 0:01:39]}  Nh7 {[%clk 0:01:11]} 26. Rd4 {[%clk 0:01:22]}  Rxd4 {[%clk 0:01:07]} 27. exd4 {[%clk 0:01:22]}  Ng5 {[%clk 0:01:07]} 28. Qa8+ {[%clk 0:01:22]}  Kh7 {[%clk 0:01:06]} 29. Qxa6 {[%clk 0:01:22]}  Qf4 {[%clk 0:01:07]} 30. Qxb5 {[%clk 0:01:19]}  Qxd4 {[%clk 0:01:05]} 31. a4 {[%clk 0:01:03]}  Qxg4 {[%clk 0:01:03]} 32. Qd3+ {[%clk 0:01:03]}  g6 {[%clk 0:01:02]} 33. a5 {[%clk 0:01:03]}  Qb4 {[%clk 0:00:48]} 34. Qb5 {[%clk 0:00:48]}  Qf4 {[%clk 0:00:45]} 35. Ne2 {[%clk 0:00:39]}  Qg4 {[%clk 0:00:37]} 36. Ng3 {[%clk 0:00:38]}  h5 {[%clk 0:00:30]} 37. Qe2 {[%clk 0:00:34]}  Qa4 {[%clk 0:00:25]} 38. a6 {[%clk 0:00:31]}  h4 {[%clk 0:00:22]} 39. Nf1 {[%clk 0:00:31]}  h3 {[%clk 0:00:21]} 40. g3 {[%clk 0:00:23]}  Qc6 {[%clk 0:00:20]} 41. f4 {[%clk 0:00:20]}  Nf3+ {[%clk 0:00:19]} 42. Kf2 {[%clk 0:00:21]}  Nd4 {[%clk 0:00:19]} 43. Qd3 {[%clk 0:00:16]}  Qg2+ {[%clk 0:00:19]} 44. Ke3 {[%clk 0:00:16]}  Nf5+ {[%clk 0:00:18]} 45. Qxf5 {[%clk 0:00:16]}  gxf5 {[%clk 0:00:18]} 46. Nd2 {[%clk 0:00:15]}  Qa8 {[%clk 0:00:18]} 47. Nf3 {[%clk 0:00:14]}  Qxa6 {[%clk 0:00:18]} 48. Ng5+ {[%clk 0:00:15]}  Kg6 {[%clk 0:00:18]} 49. Nxh3 {[%clk 0:00:16]}  Qb6+ {[%clk 0:00:19]} 50. Kf3 {[%clk 0:00:16]}  Qxb2 {[%clk 0:00:19]} 51. Nf2 {[%clk 0:00:15]}  Qc3+ {[%clk 0:00:19]} 52. Kg2 {[%clk 0:00:16]}  Qd2 {[%clk 0:00:19]} 53. Kf3 {[%clk 0:00:16]}  Qc3+ {[%clk 0:00:19]} 54. Kg2 {[%clk 0:00:17]}  Qc6+ {[%clk 0:00:20]} 55. Kh2 {[%clk 0:00:16]}  Qf3 {[%clk 0:00:20]} 56. Nh3 {[%clk 0:00:17]}  Kh5 {[%clk 0:00:19]} 57. Ng5 {[%clk 0:00:14]}  Qf2+ {[%clk 0:00:20]} 58. Kh3 {[%clk 0:00:15]}  Qf1+ {[%clk 0:00:20]} 59. Kh2 {[%clk 0:00:15]}  Kg4 {[%clk 0:00:20]} 0-1


[Site "https://www.chess.com"]

[Event "Titled Tuesday Blitz August 3 2021"]
[White "Degenbaev, Aziz"]
[Black "Laxman, R.R."]
[WhiteFideId "13802640"]
[BlackFideId "5005361"]
[WhiteElo "1906"]
[BlackElo "2476"]
[Result "0-1"]
[Round "01"]
[TimeControl "180+1"]
[Date "2021.08.03"]
[WhiteClock "0:01:16"]
[BlackClock "0:02:27"]

1. c4 {[%clk 0:02:55]}  e6 {[%clk 0:02:59]} 2. Nc3 {[%clk 0:02:55]}  d5 {[%clk 0:02:58]} 3. d4 {[%clk 0:02:55]}  Nf6 {[%clk 0:02:57]} 4. cxd5 {[%clk 0:02:55]}  Nxd5 {[%clk 0:02:58]} 5. e4 {[%clk 0:02:55]}  Nxc3 {[%clk 0:02:58]} 6. bxc3 {[%clk 0:02:55]}  c5 {[%clk 0:02:59]} 7. Nf3 {[%clk 0:02:56]}  cxd4 {[%clk 0:02:58]} 8. cxd4 {[%clk 0:02:57]}  Bb4+ {[%clk 0:02:58]} 9. Bd2 {[%clk 0:02:57]}  Bxd2+ {[%clk 0:02:59]} 10. Qxd2 {[%clk 0:02:58]}  O-O {[%clk 0:02:59]} 11. Rd1 {[%clk 0:02:57]}  b6 {[%clk 0:02:59]} 12. Bd3 {[%clk 0:02:54]}  Bb7 {[%clk 0:02:55]} 13. O-O {[%clk 0:02:54]}  Nd7 {[%clk 0:02:55]} 14. a4 {[%clk 0:02:50]}  Qe7 {[%clk 0:02:53]} 15. a5 {[%clk 0:02:48]}  b5 {[%clk 0:02:53]} 16. Rfe1 {[%clk 0:02:25]}  a6 {[%clk 0:02:53]} 17. Bb1 {[%clk 0:02:18]}  Rfd8 {[%clk 0:02:50]} 18. Qf4 {[%clk 0:02:17]}  Nf6 {[%clk 0:02:48]} 19. e5 {[%clk 0:02:08]}  Nd5 {[%clk 0:02:48]} 20. Qg3 {[%clk 0:02:04]}  Nc3 {[%clk 0:02:44]} 21. Bxh7+ {[%clk 0:01:51]}  Kxh7 {[%clk 0:02:44]} 22. Ng5+ {[%clk 0:01:51]}  Kg8 {[%clk 0:02:45]} 23. Qh4 {[%clk 0:01:48]}  Qc7 {[%clk 0:02:30]} 24. Rc1 {[%clk 0:01:19]}  Ne2+ {[%clk 0:02:29]} 25. Kh1 {[%clk 0:01:14]}  Nxc1 {[%clk 0:02:30]} 26. Qh7+ {[%clk 0:01:14]}  Kf8 {[%clk 0:02:30]} 27. Qh8+ {[%clk 0:01:15]}  Ke7 {[%clk 0:02:29]} 28. Qxg7 {[%clk 0:01:15]}  Rf8 {[%clk 0:02:29]} 29. Qf6+ {[%clk 0:01:15]}  Ke8 {[%clk 0:02:29]} 30. Nh7 {[%clk 0:01:16]}  Rg8 {[%clk 0:02:27]} 0-1


[Site "https://www.chess.com"]